bitfinex/quotes_ETHUSD_20241231
["timestamp","ask_amount","ask_price","bid_price","bid_amount"]
[1735646712520,120.42351951,3401.0,3400.9,18.34699286]
[1735646712721,120.42351951,3401.0,3400.9,15.84309286]
[1735646714771,123.75351951,3401.0,3400.9,15.84309286]
[1735646715172,123.75351951,3401.0,3400.9,13.19609472]
[1735646716686,123.75351951,3401.0,3400.9,11.35262075]
[1735646717273,127.08351951,3401.0,3400.9,11.35262075]
[1735646717473,127.08351951,3401.0,3400.9,13.78901075]
[1735646718057,127.08351951,3401.0,3400.9,16.24529776]
[1735646718287,127.08351951,3401.0,3400.9,13.80890776]
[1735646718784,127.08351951,3401.0,3400.9,15.88084776]
[1735646719482,127.08351951,3401.0,3400.9,16.49491951]
[1735646719646,130.41351951,3401.0,3400.9,16.49491951]
[1735646719847,130.41351951,3401.0,3400.9,17.04491951]
[1735646720525,130.41351951,3401.0,3400.9,13.97456075]
[1735646720929,130.41351951,3401.0,3400.9,11.35262075]
[1735646721729,130.41351951,3401.0,3400.9,8.41223075]
[1735646721930,135.05751908,3401.0,3400.9,5.57003955]
[1735646722139,138.38751908,3401.0,3400.9,2.54034128]
[1735646723139,138.38751908,3401.0,3400.9,4.38644041]
[1735646724044,135.39121951,3401.0,3400.9,4.38644041]
[1735646724542,135.39121951,3401.0,3400.9,2.54034128]
[1735646724723,138.72121951,3401.0,3400.9,2.54034128]
[1735646727116,142.05121951,3401.0,3400.9,2.54034128]
[1735646728089,142.05121951,3401.0,3400.9,5.38253248]
[1735646728233,140.40351951,3401.0,3400.9,8.32292248]
[1735646728637,140.40351951,3401.0,3400.9,13.71902161]
[1735646728863,140.40351951,3401.0,3400.9,17.97082097]
[1735646729461,143.73351951,3401.0,3400.9,17.97082097]
[1735646730241,143.73351951,3401.0,3400.9,28.44092097]
[1735646730441,143.73351951,3401.0,3400.9,28.62900694]
[1735646730665,141.55008149,3401.0,3400.9,28.62900694]
[1735646731264,140.07992149,3401.0,3400.9,28.62900694]
[1735646731565,134.19928149,3401.0,3400.9,28.62900694]
[1735646731943,127.32915477,3401.0,3400.9,31.16677049]
[1735646732342,119.97835477,3401.0,3400.9,31.16677049]
[1735646733789,117.03803477,3401.0,3400.9,31.16677049]
[1735646733944,109.7316168,3401.0,3400.9,31.16677049]
[1735646734272,98.45101008,3401.0,3400.9,31.16677049]
[1735646734443,95.51069008,3401.0,3400.9,31.16677049]
[1735646734992,91.6162172,3401.0,3400.9,31.16677049]
[1735646735295,89.5460572,3401.0,3400.9,31.16677049]
[1735646735851,86.6057372,3401.0,3400.9,31.16677049]
[1735646736053,85.1355772,3401.0,3400.9,32.93577049]
[1735646736280,82.1952572,3401.0,3400.9,32.93577049]
[1735646736665,79.0559172,3401.0,3400.9,32.93577049]
[1735646736867,78.75348992,3401.0,3400.9,32.93577049]
[1735646737493,77.28332992,3401.0,3400.9,32.93577049]
[1735646737711,49.0929917,3401.0,3400.9,32.93577049]
[1735646737984,49.0929917,3401.0,3400.9,24.11577049]
[1735646737985,27.25918477,3401.0,3400.9,24.11577049]
[1735646738186,27.25918477,3401.0,3400.9,21.27357929]
[1735646738394,19.90838477,3401.0,3400.9,24.11577049]
[1735646739091,23.23838477,3401.0,3400.9,24.11577049]
[1735646740180,23.23838477,3401.0,3400.9,24.26254016]
[1735646741197,21.76822477,3401.0,3400.9,24.26254016]
[1735646741358,25.09822477,3401.0,3400.9,24.26254016]
[1735646742291,23.62806477,3401.0,3400.9,24.26254016]
[1735646742593,20.68774477,3401.0,3400.9,24.26254016]
[1735646742999,20.68774477,3401.0,3400.9,30.90577049]
[1735646743000,17.74742477,3401.0,3400.9,30.90577049]
[1735646743996,21.07742477,3401.0,3400.9,30.90577049]
[1735646744720,16.71173189,3401.0,3400.9,30.90577049]
[1735646744923,16.71173189,3401.0,3400.9,29.13677049]
[1735646745778,16.71173189,3401.0,3400.9,22.34677049]
[1735646746422,20.04173189,3401.0,3400.9,22.34677049]
[1735646748913,23.37173189,3401.0,3400.9,22.34677049]
[1735646751258,23.37173189,3401.0,3400.9,19.80900694]
[1735646751403,23.42723021,3401.0,3400.9,19.80900694]
[1735646753941,26.75723021,3401.0,3400.9,19.80900694]
[1735646754600,26.75723021,3401.0,3400.9,23.48818485]
[1735646756320,25.72119667,3401.0,3400.9,23.48818485]
[1735646756821,25.72119667,3401.0,3400.9,21.83808485]
[1735646757017,25.72119667,3401.0,3400.9,18.83808485]
[1735646757543,25.72119667,3401.0,3400.9,21.83808485]
[1735646758770,25.72119667,3401.0,3400.9,21.225733]
[1735646758771,29.05119667,3401.0,3400.9,21.225733]
[1735646760259,30.55939667,3401.0,3400.9,21.225733]
[1735646761233,32.38119667,3401.0,3400.9,21.225733]
[1735646761976,32.38119667,3401.0,3400.9,18.15890694]
[1735646762343,32.38119667,3401.0,3400.9,19.68240694]
[1735646763504,35.71119667,3401.0,3400.9,19.68240694]
[1735646765992,39.04119667,3401.0,3400.9,19.68240694]
[1735646767603,39.04119667,3401.0,3400.9,23.36158485]
[1735646767958,35.76672264,3401.0,3400.9,23.36158485]
[1735646768471,39.09672264,3401.0,3400.9,23.36158485]
[1735646768986,38.46719364,3401.0,3400.9,23.36158485]
[1735646770780,41.79719364,3401.0,3400.9,23.36158485]
[1735646771096,40.92807358,3401.0,3400.9,23.36158485]
[1735646771298,40.92807358,3401.0,3400.9,19.68240694]
[1735646773888,44.25807358,3401.0,3400.9,19.68240694]
[1735646774702,44.25807358,3401.0,3400.9,15.31671574]
[1735646774904,44.25807358,3401.0,3400.9,18.15890694]
[1735646775091,44.25807358,3401.0,3400.9,17.85603694]
[1735646776180,47.58807358,3401.0,3400.9,17.85603694]
[1735646777807,47.58807358,3401.0,3400.9,19.51543694]
[1735646778577,50.91807358,3401.0,3400.9,19.51543694]
[1735646781231,54.24807358,3401.0,3400.9,19.51543694]
[1735646783509,54.30349926,3401.0,3400.9,19.51543694]
[1735646783830,54.30349926,3401.0,3400.9,17.85603694]
[1735646785994,57.63349926,3401.0,3400.9,17.85603694]
[1735646786194,57.63349926,3401.0,3400.9,15.01384574]
[1735646786500,57.63349926,3401.0,3400.9,17.85603694]
[1735646788746,60.96349926,3401.0,3400.9,17.85603694]
[1735646791106,64.29349926,3401.0,3400.9,17.85603694]
[1735646793512,67.62349926,3401.0,3400.9,17.85603694]
[1735646796164,70.95349926,3401.0,3400.9,17.85603694]
[1735646796371,70.95349926,3401.0,3400.9,17.50790944]
[1735646798657,74.28349926,3401.0,3400.9,17.50790944]
[1735646799156,71.00901658,3401.0,3400.9,17.50790944]
[1735646801177,74.33901658,3401.0,3400.9,17.50790944]
[1735646803859,77.66901658,3401.0,3400.9,17.50790944]
[1735646804295,77.66901658,3401.0,3400.9,22.57723704]
[1735646805305,76.99879658,3401.0,3400.9,22.57723704]
[1735646806400,80.32879658,3401.0,3400.9,22.57723704]
[1735646808718,83.65879658,3401.0,3400.9,22.57723704]
[1735646810011,83.65879658,3401.0,3400.9,25.11500059]
[1735646810989,78.79236558,3401.0,3400.9,25.11500059]
[1735646811333,58.84113969,3401.0,3400.9,27.14078265]
[1735646811626,57.18389497,3401.0,3400.9,27.14078265]
[1735646811926,57.18389497,3401.0,3400.9,31.3930191]
[1735646812126,56.45303097,3401.0,3400.9,30.92643768]
[1735646812301,52.04255097,3401.0,3400.9,30.92643768]
[1735646813028,52.04255097,3401.0,3400.9,29.33683768]
[1735646813614,55.37255097,3401.0,3400.9,29.33683768]
[1735646813814,55.37255097,3401.0,3400.9,26.80527363]
[1735646814013,51.00698207,3401.0,3400.9,26.80527363]
[1735646814319,49.93248207,3401.0,3400.9,27.14772511]
[1735646814915,49.93248207,3401.0,3400.9,20.35772511]
[1735646815109,49.93248207,3401.0,3400.9,17.81996156]
[1735646815323,46.65796725,3401.0,3400.9,17.81996156]
[1735646816091,49.98796725,3401.0,3400.9,17.81996156]
[1735646816730,51.56406725,3401.0,3400.9,17.81996156]
[1735646817026,51.56406725,3401.0,3400.9,21.11844495]
[1735646817927,51.56406725,3401.0,3400.9,16.80382505]
[1735646818570,54.89406725,3401.0,3400.9,16.80382505]
[1735646818771,40.73346329,3401.0,3400.9,16.80382505]
[1735646819058,25.50352401,3401.0,3400.9,16.80382505]
[1735646819362,19.41070114,3401.0,3400.9,16.9502024]
[1735646819669,15.87554114,3401.0,3400.9,18.5398024]
[1735646820028,15.68000024,3401.0,3400.9,18.5398024]
[1735646820229,14.51203524,3401.0,3400.9,18.5398024]
[1735646820430,10.42572024,3401.0,3400.9,18.5398024]
[1735646820737,1.57189542,3401.0,3400.9,18.5398024]
[1735646820931,4.90189542,3401.0,3400.9,18.5398024]
[1735646821130,4.10799542,3401.0,3400.9,18.5398024]
[1735646821331,0.89,3402.1,3401.8,2.93962]
[1735646821549,0.89,3402.1,3401.9,8.55]
[1735646821861,0.89,3402.1,3402.0,8.55]
[1735646822024,0.89,3402.1,3402.0,11.48944]
[1735646822025,2.4661,3402.1,3402.0,11.48944]
[1735646822230,2.4661,3402.1,3402.0,8.0]
[1735646822451,2.4661,3402.1,3402.0,3.0]
[1735646822622,1.5761,3402.0,3401.9,7.2524455]
[1735646823263,4.9061,3402.0,3401.9,7.2524455]
[1735646823464,7.74261518,3402.0,3401.9,7.2524455]
[1735646823669,4.9061,3402.0,3401.9,1.52420477]
[1735646824968,3.33,3402.0,3401.7,1.23233927]
[1735646825168,1.6188,3401.8,3401.7,1.23233927]
[1735646825771,4.9488,3401.8,3401.7,1.23233927]
[1735646826269,3.33,3401.8,3401.7,1.23233927]
[1735646826469,4.9488,3401.8,3401.7,1.23233927]
[1735646827768,4.9488,3401.8,3401.7,3.0]
[1735646828244,8.2788,3401.8,3401.7,6.5015]
[1735646828448,8.2788,3401.8,3401.7,3.0]
[1735646828754,8.2788,3401.8,3401.7,5.32805]
[1735646829476,8.2788,3401.8,3401.7,8.70076368]
[1735646830170,8.2788,3401.8,3401.7,11.64046368]
[1735646830750,11.6088,3401.8,3401.7,6.37271368]
[1735646830938,11.6088,3401.8,3401.7,7.80531477]
[1735646831457,9.99,3401.8,3401.7,7.80531477]
[1735646831773,9.99,3401.8,3401.7,10.74501477]
[1735646832277,9.99,3401.8,3401.7,13.82384284]
[1735646833249,13.32,3401.8,3401.7,13.82384284]
[1735646833754,13.32,3401.8,3401.7,12.77919987]
[1735646835078,13.32,3401.8,3401.7,10.74501477]
[1735646835681,16.65,3401.8,3401.7,10.74501477]
[1735646836370,16.65,3401.8,3401.7,12.77919987]
[1735646837651,16.65,3401.8,3401.7,13.32919987]
[1735646838217,19.98,3401.8,3401.7,13.32919987]
[1735646839317,19.98,3401.8,3401.7,17.0232555]
[1735646839964,19.98,3401.8,3401.7,17.59961248]
[1735646840424,23.31,3401.8,3401.7,17.59961248]
[1735646840696,23.31,3401.8,3401.7,13.90555685]
[1735646841659,23.31,3401.8,3401.7,17.59961248]
[1735646842876,26.64,3401.8,3401.7,17.59961248]
[1735646843083,26.64,3401.8,3401.7,13.90555685]
[1735646844506,26.64,3401.8,3401.7,11.87137175]
[1735646845669,29.97,3401.8,3401.7,11.87137175]
[1735646845871,29.97,3401.8,3401.7,17.59453744]
[1735646847971,33.3,3401.8,3401.7,17.59453744]
[1735646848345,33.3,3401.8,3401.7,13.90555685]
[1735646850001,33.3,3401.8,3401.7,17.59453744]
[1735646850381,36.63,3401.8,3401.7,17.59453744]
[1735646851104,38.2701,3401.8,3401.7,13.35555685]
[1735646851312,39.12263723,3401.8,3401.7,3.55838987]
[1735646851809,39.12263723,3401.8,3401.7,6.55838987]
[1735646852037,39.12263723,3401.8,3401.7,3.55838987]
[1735646852441,38.2701,3401.8,3401.7,6.55838987]
[1735646852640,38.2701,3401.8,3401.7,7.59810383]
[1735646852819,41.6001,3401.8,3401.7,7.59810383]
[1735646853169,41.6001,3401.8,3401.7,11.06110383]
[1735646853439,41.6001,3401.8,3401.7,7.59810383]
[1735646853948,41.6001,3401.8,3401.7,7.52872919]
[1735646854465,41.6001,3401.8,3401.7,5.49196919]
[1735646854970,41.6001,3401.8,3401.7,7.81457919]
[1735646855511,44.9301,3401.8,3401.7,7.81457919]
[1735646855707,43.29,3401.8,3401.7,11.30427919]
[1735646857113,43.29,3401.8,3401.7,10.75427919]
[1735646857914,46.62,3401.8,3401.7,10.75427919]
[1735646858116,46.62,3401.8,3401.7,12.78846429]
[1735646858856,46.62,3401.8,3401.7,13.33846429]
[1735646859159,46.62,3401.8,3401.7,11.30427919]
[1735646860232,49.95,3401.8,3401.7,12.93867919]
[1735646860554,49.95,3401.8,3401.7,17.02714316]
[1735646861839,49.95,3401.8,3401.7,18.20385416]
[1735646862648,53.28,3401.8,3401.7,18.20385416]
[1735646863025,53.28,3401.8,3401.7,19.83825416]
[1735646863474,53.28,3401.8,3401.7,16.14957529]
[1735646863958,50.00624475,3401.8,3401.7,16.14957529]
[1735646864638,50.00624475,3401.8,3401.7,14.11539019]
[1735646865064,53.33624475,3401.8,3401.7,14.11539019]
[1735646866072,53.33624475,3401.8,3401.7,16.14957529]
[1735646867333,56.66624475,3401.8,3401.7,16.14957529]
[1735646869980,59.99624475,3401.8,3401.7,16.14957529]
[1735646872453,63.32624475,3401.8,3401.7,16.14957529]
[1735646873478,63.32624475,3401.8,3401.7,14.51517529]
[1735646875161,66.65624475,3401.8,3401.7,14.51517529]
[1735646875346,66.20624475,3401.8,3401.7,14.51517529]
[1735646876343,66.20624475,3401.8,3401.7,15.76188927]
[1735646877264,66.20624475,3401.8,3401.7,20.07162084]
[1735646877465,69.53624475,3401.8,3401.7,20.07162084]
[1735646877664,69.53624475,3401.8,3401.7,13.26992008]
[1735646878497,69.53624475,3401.8,3401.7,15.73892571]
[1735646878993,66.26240346,3401.8,3401.7,15.73892571]
[1735646879981,69.59240346,3401.8,3401.7,15.73892571]
[1735646881152,69.59240346,3401.8,3401.7,13.94221173]
[1735646881553,69.59240346,3401.8,3401.7,15.18892571]
[1735646882694,72.92240346,3401.8,3401.7,18.88298928]
[1735646884955,76.25240346,3401.8,3401.7,18.88298928]
[1735646886303,76.25240346,3401.8,3401.7,19.43298928]
[1735646887385,79.58240346,3401.8,3401.7,19.43298928]
[1735646888189,79.58240346,3401.8,3401.7,15.73892571]
[1735646888764,79.58240346,3401.8,3401.7,16.98563969]
[1735646889008,79.58240346,3401.8,3401.7,15.73892571]
[1735646889816,82.91240346,3401.8,3401.7,15.73892571]
[1735646890838,79.97278346,3401.8,3401.7,16.15161173]
[1735646890973,79.97278346,3401.8,3401.7,17.39832571]
[1735646891299,79.97278346,3401.8,3401.7,15.73892571]
[1735646891485,79.97278346,3401.8,3401.7,14.49221173]
[1735646891686,79.97278346,3401.8,3401.7,15.73892571]
[1735646891994,79.97278346,3401.8,3401.7,20.04701293]
[1735646892199,83.30278346,3401.8,3401.7,20.04701293]
[1735646892395,83.30278346,3401.8,3401.7,18.80029895]
[1735646892597,83.30278346,3401.8,3401.7,20.04701293]
[1735646893722,83.30278346,3401.8,3401.7,15.73892571]
[1735646894021,84.81058346,3401.8,3401.7,15.18892571]
[1735646894615,88.14058346,3401.8,3401.7,15.18892571]
[1735646895214,88.14058346,3401.8,3401.7,18.88511011]
[1735646897201,91.47058346,3401.8,3401.7,18.88511011]
[1735646897598,89.96278346,3401.8,3401.7,18.88511011]
[1735646898389,89.96278346,3401.8,3401.7,19.43511011]
[1735646899686,93.29278346,3401.8,3401.7,22.27832409]
[1735646900383,93.29278346,3401.8,3401.7,17.33542571]
[1735646901504,93.29278346,3401.8,3401.7,18.58213969]
[1735646902021,93.29278346,3401.8,3401.7,17.33542571]
[1735646902234,96.62278346,3401.8,3401.7,18.58213969]
[1735646902435,93.3491208,3401.8,3401.7,18.58213969]
[1735646904311,93.3491208,3401.8,3401.7,16.08871173]
[1735646904514,93.3491208,3401.8,3401.7,17.59453744]
[1735646904825,96.6791208,3401.8,3401.7,17.59453744]
[1735646908045,100.0091208,3401.8,3401.7,17.59453744]
[1735646908226,100.0091208,3401.8,3401.7,13.50460948]
[1735646908425,100.0091208,3401.8,3401.7,14.75132346]
[1735646909241,100.0091208,3401.8,3401.7,7.01490948]
[1735646909450,104.56212037,3401.8,3401.7,4.69229948]
[1735646910101,104.56212037,3401.8,3401.7,7.69229948]
[1735646910301,107.89212037,3401.8,3401.7,7.69229948]
[1735646910501,107.89212037,3401.8,3401.7,4.69229948]
[1735646910736,107.89212037,3401.8,3401.7,5.74351841]
[1735646911303,107.89212037,3401.8,3401.7,8.74351841]
[1735646912414,107.89212037,3401.8,3401.7,5.65811438]
[1735646912609,108.2258208,3401.8,3401.7,5.65811438]
[1735646912845,108.2258208,3401.8,3401.7,8.57170438]
[1735646913051,108.2258208,3401.8,3401.7,10.73527438]
[1735646913250,106.6691208,3401.8,3401.7,13.59781438]
[1735646913464,106.6691208,3401.8,3401.7,12.91170438]
[1735646913666,106.6691208,3401.8,3401.7,15.92845884]
[1735646914963,106.6691208,3401.8,3401.7,15.49588948]
[1735646915189,109.9991208,3401.8,3401.7,15.49588948]
[1735646916036,109.9991208,3401.8,3401.7,20.79880408]
[1735646917650,113.3291208,3401.8,3401.7,16.47923843]
[1735646918144,110.05555957,3401.8,3401.7,16.47923843]
[1735646918463,108.58574957,3401.8,3401.7,16.47923843]
[1735646920064,108.58574957,3401.8,3401.7,19.80758974]
[1735646920269,111.91574957,3401.8,3401.7,27.19575922]
[1735646921228,111.91574957,3401.8,3401.7,29.73352277]
[1735646922082,96.01406941,3401.8,3401.7,29.110827]
[1735646922243,94.13226913,3401.8,3401.7,35.900827]
[1735646922439,90.93264913,3401.8,3401.7,35.900827]
[1735646922644,94.26264913,3401.8,3401.7,35.900827]
[1735646922847,94.21264913,3401.8,3401.7,35.900827]
[1735646923232,92.74283913,3401.8,3401.7,31.58912674]
[1735646923529,88.14657386,3401.8,3401.7,28.75172251]
[1735646923698,88.14657386,3401.8,3401.7,32.55824765]
[1735646923978,82.69134782,3401.8,3401.7,32.50824765]
[1735646924333,80.38053782,3401.8,3401.7,32.50824765]
[1735646924583,77.44091782,3401.8,3401.7,32.50824765]
[1735646924752,73.07691671,3401.8,3401.7,32.50824765]
[1735646924958,76.40691671,3401.8,3401.7,32.50824765]
[1735646925174,75.88661671,3401.8,3401.7,32.83671196]
[1735646925409,26.64,3401.8,3401.7,26.50622364]
[1735646925541,22.44991858,3401.8,3401.7,26.89964831]
[1735646925880,22.44991858,3401.8,3401.7,24.05569935]
[1735646926184,20.55457499,3401.8,3401.7,24.20281661]
[1735646926334,12.8945668,3401.8,3401.7,24.20281661]
[1735646927279,16.2245668,3401.8,3401.7,24.20281661]
[1735646927574,13.2851268,3401.8,3401.7,24.20281661]
[1735646927874,8.0564668,3401.8,3401.7,24.20281661]
[1735646928039,7.2601668,3401.8,3401.7,24.20281661]
[1735646928241,1.86028,3402.0,3401.9,9.81943]
[1735646928605,0.0152634,3403.2,3403.1,6.48849]
[1735646928908,0.0152634,3403.2,3403.1,11.48849]
[1735646929109,0.89,3404.2,3403.8,2.93789]
[1735646929418,1.6236,3404.5,3404.0,3.0]
[1735646929679,1.6236,3404.5,3404.1,5.0]
[1735646929838,4.9536,3404.5,3404.2,2.93752]
[1735646930035,4.9536,3404.5,3404.4,3.0]
[1735646930304,4.9536,3404.5,3404.4,8.0]
[1735646931180,4.9536,3404.5,3404.4,7.8]
[1735646931472,4.9536,3404.5,3404.4,9.02722833]
[1735646932241,8.2836,3404.5,3404.4,9.02722833]
[1735646932746,8.2836,3404.5,3404.4,11.45470163]
[1735646934604,9.11196,3404.5,3404.4,8.76646163]
[1735646934901,12.44196,3404.5,3404.4,6.45470163]
[1735646935247,13.33196,3404.5,3404.4,3.77098932]
[1735646935447,13.33196,3404.5,3404.4,0.97098932]
[1735646936783,13.33196,3404.5,3403.9,4.49084]
[1735646937202,15.8336,3404.5,3403.9,7.4286]
[1735646937605,15.8336,3404.5,3404.0,8.0]
[1735646937768,15.8336,3404.5,3404.1,8.0]
[1735646937968,15.8336,3404.5,3404.2,5.0]
[1735646938169,15.8336,3404.5,3403.9,2.93776]
[1735646938995,15.8336,3404.5,3404.1,3.0]
[1735646939220,15.8336,3404.5,3404.2,5.0]
[1735646939726,19.1636,3404.5,3404.2,5.0]
[1735646941224,19.1636,3404.5,3404.3,3.0]
[1735646941537,19.1636,3404.5,3404.4,8.0]
[1735646942240,17.54,3404.5,3404.4,10.93737]
[1735646942444,20.87,3404.5,3404.4,10.93737]
[1735646942585,20.87,3404.5,3404.4,13.10137]
[1735646944648,14.66165035,3404.5,3404.4,16.82304916]
[1735646944941,13.58573035,3404.5,3404.4,17.28873194]
[1735646945083,13.58573035,3404.5,3404.4,16.82304916]
[1735646945910,13.58573035,3404.5,3404.4,20.04976362]
[1735646946399,9.22458626,3404.5,3404.4,20.04976362]
[1735646946813,3.33714242,3404.5,3404.4,20.04976362]
[1735646947012,3.33714242,3404.5,3404.4,18.43576362]
[1735646947211,6.66714242,3404.5,3404.4,13.98182083]
[1735646947822,6.61714242,3404.5,3404.4,13.98182083]
[1735646948601,6.61714242,3404.5,3404.4,11.48737]
[1735646949018,6.61714242,3404.5,3404.4,14.32477423]
[1735646949541,9.94714242,3404.5,3404.4,14.32477423]
[1735646950088,9.94714242,3404.5,3404.4,15.87277423]
[1735646951708,9.94714242,3404.5,3404.4,17.90071033]
[1735646951911,13.27714242,3404.5,3404.4,17.90071033]
[1735646952434,4.46530242,3404.5,3404.4,19.66971033]
[1735646952827,4.46530242,3404.5,3404.4,20.13539311]
[1735646953457,2.42e-06,3404.5,3404.4,20.13539311]
[1735646953601,1.5408,3405.9,3404.9,0.55]
[1735646953800,1.5408,3405.9,3405.6,2.93631]
[1735646954027,1.5408,3405.9,3405.7,5.0]
[1735646954241,1.5408,3405.9,3405.8,3.0]
[1735646954411,4.8708,3405.9,3405.8,8.0]
[1735646955302,4.8708,3405.9,3405.8,11.48616]
[1735646955303,3.33,3405.9,3405.8,11.48616]
[1735646956707,6.66,3405.9,3405.8,11.48616]
[1735646959118,9.99,3405.9,3405.8,8.55]
[1735646959716,9.94,3405.9,3405.8,8.55]
[1735646961222,9.89,3405.9,3405.8,8.55]
[1735646961718,13.22,3405.9,3405.8,8.55]
[1735646962566,13.22,3405.9,3405.8,8.0]
[1735646963252,13.17,3405.9,3405.8,8.0]
[1735646963447,14.8016,3405.9,3405.8,8.0]
[1735646963625,14.8016,3405.9,3405.8,5.0]
[1735646963826,14.8016,3405.9,3405.6,5.0]
[1735646964139,18.1316,3405.9,3405.7,3.0]
[1735646964447,18.1316,3405.9,3405.8,4.90235]
[1735646964981,18.0816,3405.9,3405.8,4.90235]
[1735646966383,18.0816,3405.9,3405.8,2.37559]
[1735646966541,21.4116,3405.9,3405.7,3.0]
[1735646966741,21.4116,3405.9,3405.8,5.0]
[1735646968681,21.4116,3405.9,3405.8,3.396919]
[1735646968888,19.78,3405.9,3405.4,0.58236482]
[1735646969047,19.78,3405.9,3405.5,5.0]
[1735646969048,24.39800588,3405.9,3405.5,5.0]
[1735646969573,1.6316,3405.8,3405.5,5.0]
[1735646971482,4.9616,3405.8,3405.5,5.0]
[1735646973885,8.2916,3405.8,3405.5,5.0]
[1735646975196,1.6513,3405.7,3405.6,1.00117697]
[1735646975360,4.64759957,3405.7,3405.6,1.00117697]
[1735646976381,7.97759957,3405.7,3405.6,1.00117697]
[1735646976974,1.6513,3405.6,3405.4,0.58236482]
[1735646977894,1.6513,3405.6,3405.2,1.21736656]
[1735646977895,1.6513,3405.5,3405.2,1.21736656]
[1735646978199,2.93644,3405.5,3405.2,1.21736656]
[1735646978365,1.6513,3405.4,3405.2,1.21736656]
[1735646978561,4.58788,3405.4,3405.2,1.21736656]
[1735646978892,5.34630796,3405.3,3405.2,1.21736656]
[1735646979613,2.40971796,3405.3,3405.2,1.21736656]
[1735646979900,1.6513,3405.2,3404.8,2.2232195]
[1735646981305,1.6513,3405.1,3404.8,2.2232195]
[1735646981506,1.6513,3405.1,3404.7,0.59147458]
[1735646983177,1.6513,3405.1,3404.8,1.00585294]
[1735646983901,4.9813,3405.1,3404.8,1.00585294]
[1735646985588,4.9813,3405.1,3404.9,4.594]
[1735646985789,4.9813,3405.1,3404.9,3.276]
[1735646986109,4.9813,3405.1,3404.9,3.09485]
[1735646986403,8.3113,3405.1,3404.9,2.29289]
[1735646986575,8.3113,3405.1,3405.0,4.99007]
[1735646986782,6.66,3405.1,3405.0,2.30415]
[1735646986981,6.66,3405.1,3404.9,3.25311]
[1735646987215,6.66,3405.1,3405.0,2.50837292]
[1735646987422,6.66,3405.1,3405.0,4.77798292]
[1735646988588,9.99,3405.1,3405.0,3.27546294]
[1735646989421,9.99,3405.1,3405.0,6.00585294]
[1735646990426,9.99,3405.1,3405.0,7.835372]
[1735646991027,9.99,3405.1,3405.0,6.280022]
[1735646991328,13.32,3405.1,3405.0,5.656072]
[1735646991526,14.8445,3405.1,3405.0,2.835372]
[1735646991833,14.8445,3405.1,3405.0,4.33789198]
[1735646992327,14.8445,3405.1,3405.0,6.44503198]
[1735646992825,14.8445,3405.1,3405.0,7.70028198]
[1735646993731,18.1745,3405.1,3405.0,3.05458294]
[1735646994026,18.1745,3405.1,3405.0,3.15332294]
[1735646994634,18.1745,3405.1,3405.0,1.00585294]
[1735646996005,21.5045,3405.1,3405.0,1.22557375]
[1735646997091,24.50079957,3405.1,3405.0,1.22557375]
[1735646997326,27.43756957,3405.1,3405.0,1.22557375]
[1735646997531,1.5245,3405.0,3404.9,1.22557375]
[1735646997704,4.46135,3405.0,3404.9,1.22557375]
[1735646998042,7.45764957,3405.0,3404.9,1.22557375]
[1735646998531,10.78764957,3405.0,3404.9,1.22557375]
[1735646999030,10.78764957,3405.0,3404.6,1.22557375]
[1735646999031,1.5245,3404.8,3404.6,1.22557375]
[1735646999206,2.93711,3404.7,3404.6,1.22557375]
[1735646999407,4.46161,3404.7,3404.6,1.22557375]
[1735647000310,1.5245,3404.6,3404.4,1.22557375]
[1735647000995,4.8545,3404.6,3404.4,1.22557375]
[1735647001431,4.8545,3404.6,3404.3,1.22557375]
[1735647003327,4.8545,3404.6,3404.1,1.22557375]
[1735647003521,8.1845,3404.6,3404.1,1.22557375]
[1735647003923,6.66,3404.6,3404.1,2.74437375]
[1735647004124,6.66,3404.6,3404.5,2.93728]
[1735647004328,6.66,3404.6,3404.5,9.45608]
[1735647005749,6.66,3404.6,3404.5,13.00608]
[1735647006049,9.99,3404.6,3404.5,13.00608]
[1735647006253,9.99,3404.6,3404.5,17.51781289]
[1735647007710,6.71895844,3404.6,3404.5,17.51781289]
[1735647008437,10.04895844,3404.6,3404.5,17.51781289]
[1735647010791,10.04895844,3404.6,3404.5,18.10124386]
[1735647011094,13.37895844,3404.6,3404.5,18.10124386]
[1735647012087,13.37895844,3404.6,3404.5,13.09516386]
[1735647012288,13.37895844,3404.6,3404.5,16.03244386]
[1735647012475,13.37895844,3404.6,3404.5,16.58244386]
[1735647012672,9.0178583,3404.6,3404.5,16.03244386]
[1735647013243,9.0178583,3404.6,3404.5,13.09516386]
[1735647013559,12.3478583,3404.6,3404.5,16.77406415]
[1735647014194,12.3478583,3404.6,3404.5,19.71134415]
[1735647015005,12.3478583,3404.6,3404.5,17.09609544]
[1735647015506,12.3478583,3404.6,3404.5,17.64609544]
[1735647015668,12.3478583,3404.6,3404.5,17.09609544]
[1735647016002,15.6778583,3404.6,3404.5,17.09609544]
[1735647016170,15.6778583,3404.6,3404.5,17.64609544]
[1735647016373,15.6778583,3404.6,3404.5,18.10124386]
[1735647017503,15.6778583,3404.6,3404.5,21.78014415]
[1735647018115,19.0078583,3404.6,3404.5,21.78014415]
[1735647019157,19.0078583,3404.6,3404.5,18.10124386]
[1735647020498,19.0078583,3404.6,3404.5,22.40143813]
[1735647020796,22.3378583,3404.6,3404.5,22.40143813]
[1735647021873,22.3378583,3404.6,3404.5,20.88263813]
[1735647023174,25.6678583,3404.6,3404.5,20.88263813]
[1735647023374,25.6678583,3404.6,3404.5,16.58244386]
[1735647023562,22.39681865,3404.6,3404.5,16.58244386]
[1735647023762,22.39681865,3404.6,3404.5,18.19204386]
[1735647024398,22.39681865,3404.6,3404.5,22.49223813]
[1735647025912,25.72681865,3404.6,3404.5,22.49223813]
[1735647028272,29.05681865,3404.6,3404.5,22.49223813]
[1735647029039,29.05681865,3404.6,3404.5,16.58244386]
[1735647030742,32.38681865,3404.6,3404.5,16.58244386]
[1735647033245,35.71681865,3404.6,3404.5,16.58244386]
[1735647034148,35.71681865,3404.6,3404.5,16.03244386]
[1735647035730,39.04681865,3404.6,3404.5,16.03244386]
[1735647037257,40.69031865,3404.6,3404.5,7.75669386]
[1735647037463,43.68661822,3404.6,3404.5,4.51173289]
[1735647037759,43.68661822,3404.6,3404.5,8.17935289]
[1735647038258,47.01661822,3404.6,3404.5,8.67935289]
[1735647038882,47.01661822,3404.6,3404.5,4.96406445]
[1735647039657,47.01661822,3404.6,3404.5,9.51027445]
[1735647039799,44.02031865,3404.6,3404.5,8.25006445]
[1735647040275,44.02031865,3404.6,3404.5,8.01868445]